[Event "Early-Titled-Tuesday-Blitz-March-19-2024"]
[Site "Chess.com"]
[Date "2024.03.19"]
[Round "9"]
[White "Likvidator228"]
[Black "VladimirBugayev"]
[Result "1-0"]
[WhiteElo "2586"]
[BlackElo "2356"]
[TimeControl "180+1"]
[EndTime "9:45:01 PDT"]
[Termination "Likvidator228 won by resignation"]

1. d4 {[%clk 0:03:00.9]} 1... Nf6 {[%clk 0:02:59.4]} 2. c4 {[%clk 0:03:01]} 2...
c5 {[%clk 0:02:59.9]} 3. d5 {[%clk 0:03:01]} 3... b5 {[%clk 0:03:00.6]} 4. cxb5
{[%clk 0:03:01.9]} 4... a6 {[%clk 0:03:01.1]} 5. bxa6 {[%clk 0:03:02.4]} 5...
Bxa6 {[%clk 0:03:02]} 6. Nc3 {[%clk 0:03:02.6]} 6... g6 {[%clk 0:03:02]} 7. e4
{[%clk 0:03:02.8]} 7... Bxf1 {[%clk 0:03:02.2]} 8. Kxf1 {[%clk 0:03:03.7]} 8...
d6 {[%clk 0:03:02.4]} 9. Nf3 {[%clk 0:03:04]} 9... Bg7 {[%clk 0:03:01.7]} 10. g3
{[%clk 0:03:04.6]} 10... O-O {[%clk 0:03:01.7]} 11. Kg2 {[%clk 0:03:05.2]} 11...
Qb6 {[%clk 0:03:02.4]} 12. a4 {[%clk 0:03:05.3]} 12... Na6 {[%clk 0:03:03.1]}
13. Re1 {[%clk 0:03:03.3]} 13... Nd7 {[%clk 0:02:56.2]} 14. Ra3 {[%clk
0:02:53.9]} 14... Nc7 {[%clk 0:02:40.6]} 15. Qe2 {[%clk 0:02:50.4]} 15... e6
{[%clk 0:02:39.5]} 16. Qc4 {[%clk 0:02:33.2]} 16... Rfb8 {[%clk 0:02:19.9]} 17.
dxe6 {[%clk 0:02:31]} 17... Nxe6 {[%clk 0:02:19.5]} 18. Nd5 {[%clk 0:02:28]}
18... Qa6 {[%clk 0:02:06.9]} 19. b3 {[%clk 0:02:12.3]} 19... Qxc4 {[%clk
0:01:45]} 20. bxc4 {[%clk 0:02:12.1]} 20... Nb6 {[%clk 0:01:28.1]} 21. Nxb6
{[%clk 0:01:57]} 21... Rxb6 {[%clk 0:01:29]} 22. Bd2 {[%clk 0:01:45.8]} 22...
Rb2 {[%clk 0:01:20.7]} 23. a5 {[%clk 0:01:33.5]} 23... Nd4 {[%clk 0:01:13.3]}
24. Nxd4 {[%clk 0:01:30.6]} 24... cxd4 {[%clk 0:01:09.1]} 25. Bf4 {[%clk
0:01:23.5]} 25... Ra6 {[%clk 0:01:07.9]} 26. e5 {[%clk 0:01:12.5]} 26... dxe5
{[%clk 0:01:07.6]} 27. Bxe5 {[%clk 0:01:10.5]} 27... Bxe5 {[%clk 0:00:56.5]} 28.
Rxe5 {[%clk 0:01:10.4]} 28... Rf6 {[%clk 0:00:55.4]} 29. Rf3 {[%clk 0:01:04.5]}
29... Rd6 {[%clk 0:00:33]} 30. Re8+ {[%clk 0:00:53.8]} 30... Kg7 {[%clk
0:00:32.5]} 31. Re7 {[%clk 0:00:54.2]} 31... d3 {[%clk 0:00:32.4]} 32. Rfxf7+
{[%clk 0:00:53.3]} 32... Kg8 {[%clk 0:00:24.9]} 33. Rd7 {[%clk 0:00:46.1]} 33...
Rxd7 {[%clk 0:00:19.4]} 34. Rxd7 {[%clk 0:00:46]} 34... d2 {[%clk 0:00:20.3]}
35. a6 {[%clk 0:00:45]} 35... Ra2 {[%clk 0:00:20.3]} 36. a7 {[%clk 0:00:44.4]}
36... Rxa7 {[%clk 0:00:20.5]} 37. Rxd2 {[%clk 0:00:44.5]} 37... Rc7 {[%clk
0:00:19]} 38. Rc2 {[%clk 0:00:44.6]} 38... Kf7 {[%clk 0:00:19.7]} 39. c5 {[%clk
0:00:44.3]} 39... Ke6 {[%clk 0:00:20.4]} 40. Kf3 {[%clk 0:00:44.5]} 40... Kd5
{[%clk 0:00:20.5]} 41. Kg4 {[%clk 0:00:42.9]} 41... h6 {[%clk 0:00:20.5]} 42. f4
{[%clk 0:00:41.9]} 42... Rc6 {[%clk 0:00:19]} 43. h4 {[%clk 0:00:41.7]} 43...
Ke6 {[%clk 0:00:17.4]} 44. h5 {[%clk 0:00:42.1]} 44... Kf6 {[%clk 0:00:16.8]}
45. hxg6 {[%clk 0:00:42.5]} 45... Kxg6 {[%clk 0:00:17.7]} 46. Kf3 {[%clk
0:00:41.2]} 46... Kf5 {[%clk 0:00:17.7]} 47. g4+ {[%clk 0:00:41.4]} 47... Kf6
{[%clk 0:00:18.6]} 48. Ke4 {[%clk 0:00:41.9]} 48... Ke6 {[%clk 0:00:18.7]} 49.
f5+ {[%clk 0:00:42]} 49... Kf6 {[%clk 0:00:19]} 50. Kd5 {[%clk 0:00:42.7]} 50...
Rc8 {[%clk 0:00:19.4]} 51. c6 {[%clk 0:00:42.1]} 51... Kg5 {[%clk 0:00:19.3]}
52. Rc4 {[%clk 0:00:42.5]} 52... h5 {[%clk 0:00:17.2]} 53. gxh5 {[%clk
0:00:42.7]} 53... Kxf5 {[%clk 0:00:18.1]} 54. Kd6 {[%clk 0:00:42.9]} 54... Kg5
{[%clk 0:00:17.1]} 55. Kd7 {[%clk 0:00:42.5]} 55... Rh8 {[%clk 0:00:16.4]} 56.
c7 {[%clk 0:00:42.8]} 56... Rh7+ {[%clk 0:00:17]} 57. Ke6 {[%clk 0:00:41.3]} 1-0

[Event "Early-Titled-Tuesday-Blitz-March-19-2024"]
[Site "Chess.com"]
[Date "2024.03.19"]
[Round "9"]
[White "xasid81"]
[Black "arnash_bauyrzhan"]
[Result "1-0"]
[WhiteElo "2593"]
[BlackElo "2373"]
[TimeControl "180+1"]
[EndTime "9:45:05 PDT"]
[Termination "xasid81 won on time"]

1. e4 {[%clk 0:02:54.4]} 1... c5 {[%clk 0:03:00]} 2. Nf3 {[%clk 0:02:54.2]} 2...
e6 {[%clk 0:02:59.6]} 3. c3 {[%clk 0:02:54.3]} 3... d5 {[%clk 0:02:59]} 4. exd5
{[%clk 0:02:53.8]} 4... exd5 {[%clk 0:02:58.8]} 5. d4 {[%clk 0:02:54.7]} 5...
Nc6 {[%clk 0:02:58.1]} 6. Be3 {[%clk 0:02:52.3]} 6... cxd4 {[%clk 0:02:47.9]} 7.
Nxd4 {[%clk 0:02:52.1]} 7... Bd6 {[%clk 0:02:43.8]} 8. Be2 {[%clk 0:02:47.5]}
8... Nf6 {[%clk 0:02:41.4]} 9. Nd2 {[%clk 0:02:46.8]} 9... O-O {[%clk
0:02:39.6]} 10. N2f3 {[%clk 0:02:47.4]} 10... h6 {[%clk 0:02:39.9]} 11. h3
{[%clk 0:02:47.4]} 11... a6 {[%clk 0:02:31]} 12. O-O {[%clk 0:02:47.4]} 12...
Qd7 {[%clk 0:02:24.3]} 13. Re1 {[%clk 0:02:44.2]} 13... Ne5 {[%clk 0:02:19]} 14.
Nxe5 {[%clk 0:02:41.9]} 14... Bxe5 {[%clk 0:02:19.2]} 15. Nf3 {[%clk 0:02:42.5]}
15... Bc7 {[%clk 0:02:10.9]} 16. Bc5 {[%clk 0:02:36.7]} 16... Re8 {[%clk
0:02:06.9]} 17. Bd3 {[%clk 0:02:36.6]} 17... b6 {[%clk 0:02:00.3]} 18. Bd4
{[%clk 0:02:35.2]} 18... Ne4 {[%clk 0:01:56.4]} 19. Qb3 {[%clk 0:02:15.8]} 19...
Qd6 {[%clk 0:01:47]} 20. Rad1 {[%clk 0:02:08.4]} 20... Bb7 {[%clk 0:01:11.4]}
21. Bxe4 {[%clk 0:01:21.7]} 21... dxe4 {[%clk 0:01:02.1]} 22. Be5 {[%clk
0:01:19.9]} 22... Qc5 {[%clk 0:01:00.1]} 23. Bxc7 {[%clk 0:01:15.1]} 23... Qxc7
{[%clk 0:00:59.7]} 24. Nd4 {[%clk 0:01:06.4]} 24... e3 {[%clk 0:00:43.9]} 25. f3
{[%clk 0:00:49.3]} 25... Rad8 {[%clk 0:00:36.9]} 26. Qc2 {[%clk 0:00:44.2]}
26... Qg3 {[%clk 0:00:32.6]} 27. Nf5 {[%clk 0:00:42.4]} 27... Qg5 {[%clk
0:00:31.4]} 28. Rxd8 {[%clk 0:00:37.4]} 28... Rxd8 {[%clk 0:00:30.4]} 29. Rxe3
{[%clk 0:00:29.6]} 29... g6 {[%clk 0:00:21]} 30. h4 {[%clk 0:00:27.1]} 30... Qf4
{[%clk 0:00:17]} 31. Ne7+ {[%clk 0:00:23.3]} 31... Kg7 {[%clk 0:00:16.8]} 32.
Qf2 {[%clk 0:00:17.5]} 32... Rd1+ {[%clk 0:00:14.4]} 33. Re1 {[%clk 0:00:17.2]}
33... Rd2 {[%clk 0:00:07.5]} 34. Qe3 {[%clk 0:00:14.1]} 1-0

[Event "Early-Titled-Tuesday-Blitz-March-19-2024"]
[Site "Chess.com"]
[Date "2024.03.19"]
[Round "9"]
[White "only_strong_moves"]
[Black "stollenmonster"]
[Result "0-1"]
[WhiteElo "2634"]
[BlackElo "2892"]
[TimeControl "180+1"]
[EndTime "9:45:06 PDT"]
[Termination "stollenmonster won by checkmate"]

1. Nc3 {[%clk 0:03:00.3]} 1... c5 {[%clk 0:02:59.7]} 2. Nf3 {[%clk 0:03:00.2]}
2... Nc6 {[%clk 0:02:58.3]} 3. d4 {[%clk 0:03:00.3]} 3... cxd4 {[%clk
0:02:58.9]} 4. Nxd4 {[%clk 0:03:01.2]} 4... g6 {[%clk 0:02:59.3]} 5. h4 {[%clk
0:02:55.9]} 5... Bg7 {[%clk 0:02:58.8]} 6. Nb3 {[%clk 0:02:54.7]} 6... h6 {[%clk
0:02:54.7]} 7. Be3 {[%clk 0:02:37.2]} 7... Nf6 {[%clk 0:02:53.3]} 8. f3 {[%clk
0:02:30.4]} 8... d5 {[%clk 0:02:48.1]} 9. Bf2 {[%clk 0:02:30.1]} 9... e5 {[%clk
0:02:47.8]} 10. e3 {[%clk 0:02:29.3]} 10... Be6 {[%clk 0:02:43]} 11. Qd2 {[%clk
0:02:23.4]} 11... Qe7 {[%clk 0:02:39.3]} 12. g4 {[%clk 0:02:18.4]} 12... d4
{[%clk 0:02:27.8]} 13. Na4 {[%clk 0:02:01.5]} 13... Rc8 {[%clk 0:01:43]} 14.
Nac5 {[%clk 0:01:40.6]} 14... O-O {[%clk 0:01:34.9]} 15. Nxe6 {[%clk 0:01:36.9]}
15... Qxe6 {[%clk 0:01:34.8]} 16. g5 {[%clk 0:01:33.9]} 16... hxg5 {[%clk
0:01:33.5]} 17. hxg5 {[%clk 0:01:34.8]} 17... Nd5 {[%clk 0:01:33.6]} 18. Bh3
{[%clk 0:01:31.7]} 18... Qe7 {[%clk 0:01:17.7]} 19. Bxc8 {[%clk 0:01:31.5]}
19... Rxc8 {[%clk 0:01:17.9]} 20. e4 {[%clk 0:01:28.9]} 20... Nf4 {[%clk
0:01:16.3]} 21. Bg3 {[%clk 0:01:09.1]} 21... Nb4 {[%clk 0:01:13.9]} 22. c3
{[%clk 0:00:39.6]} 22... dxc3 {[%clk 0:01:08.7]} 23. bxc3 {[%clk 0:00:40.5]}
23... Nbd3+ {[%clk 0:00:58.9]} 24. Kf1 {[%clk 0:00:39.9]} 24... Qxg5 {[%clk
0:00:55]} 25. Bh4 {[%clk 0:00:22.8]} 25... Qh5 {[%clk 0:00:54.4]} 26. Rh2 {[%clk
0:00:09.6]} 26... g5 {[%clk 0:00:49.3]} 27. Be1 {[%clk 0:00:02.9]} 27... Qxf3+
{[%clk 0:00:46.7]} 28. Kg1 {[%clk 0:00:03.4]} 28... Qxe4 {[%clk 0:00:44]} 29.
Bg3 {[%clk 0:00:02.5]} 29... Qf3 {[%clk 0:00:36]} 30. Bxf4 {[%clk 0:00:02.8]}
30... Nxf4 {[%clk 0:00:36.5]} 31. Rf1 {[%clk 0:00:02.8]} 31... Qg4+ {[%clk
0:00:36.4]} 32. Kh1 {[%clk 0:00:03.1]} 32... Bf6 {[%clk 0:00:27.2]} 33. Qf2
{[%clk 0:00:02.9]} 33... Rxc3 {[%clk 0:00:23.2]} 34. Rg1 {[%clk 0:00:03.4]}
34... Qf5 {[%clk 0:00:22.6]} 35. Nc5 {[%clk 0:00:02.6]} 35... b6 {[%clk
0:00:19.3]} 36. Nb3 {[%clk 0:00:02.3]} 36... Qe4+ {[%clk 0:00:18.9]} 37. Rhg2
{[%clk 0:00:02.2]} 37... Rh3# {[%clk 0:00:18.4]} 0-1

[Event "Early-Titled-Tuesday-Blitz-March-19-2024"]
[Site "Chess.com"]
[Date "2024.03.19"]
[Round "9"]
[White "Lennis93"]
[Black "Shahdad2007"]
[Result "1-0"]
[WhiteElo "2759"]
[BlackElo "2604"]
[TimeControl "180+1"]
[EndTime "9:45:06 PDT"]
[Termination "Lennis93 won by resignation"]

1. b4 {[%clk 0:03:00.9]} 1... Nf6 {[%clk 0:02:52.9]} 2. Bb2 {[%clk 0:03:00]}
2... d5 {[%clk 0:02:49.1]} 3. Nf3 {[%clk 0:02:58.6]} 3... g6 {[%clk 0:02:49.5]}
4. Bxf6 {[%clk 0:02:57.4]} 4... exf6 {[%clk 0:02:49.4]} 5. d4 {[%clk 0:02:57.7]}
5... Bg7 {[%clk 0:02:48.7]} 6. c3 {[%clk 0:02:58]} 6... O-O {[%clk 0:02:48.3]}
7. e3 {[%clk 0:02:58.4]} 7... f5 {[%clk 0:02:47.8]} 8. g3 {[%clk 0:02:58]} 8...
a5 {[%clk 0:02:46.9]} 9. b5 {[%clk 0:02:57.2]} 9... Nd7 {[%clk 0:02:47.1]} 10.
a4 {[%clk 0:02:56.7]} 10... Nb6 {[%clk 0:02:47.4]} 11. Nbd2 {[%clk 0:02:56.4]}
11... Re8 {[%clk 0:02:43.5]} 12. Be2 {[%clk 0:02:54.7]} 12... Bd7 {[%clk
0:02:42.5]} 13. h4 {[%clk 0:02:54.4]} 13... c6 {[%clk 0:02:43]} 14. Qb3 {[%clk
0:02:51.1]} 14... Qc7 {[%clk 0:02:39.5]} 15. c4 {[%clk 0:02:34.5]} 15... f4
{[%clk 0:02:18.5]} 16. gxf4 {[%clk 0:02:31.1]} 16... dxc4 {[%clk 0:02:18.3]} 17.
Nxc4 {[%clk 0:01:48.5]} 17... Be6 {[%clk 0:02:06.9]} 18. Nfd2 {[%clk 0:01:41.1]}
18... cxb5 {[%clk 0:02:00.7]} 19. Qxb5 {[%clk 0:01:35.8]} 19... Nxc4 {[%clk
0:01:58.2]} 20. Nxc4 {[%clk 0:01:32.4]} 20... Bxc4 {[%clk 0:01:28.8]} 21. Qxc4
{[%clk 0:01:30.2]} 21... Qd7 {[%clk 0:01:29.1]} 22. Qb5 {[%clk 0:01:20.3]} 22...
Qe7 {[%clk 0:01:29.5]} 23. Rb1 {[%clk 0:01:10.5]} 23... Rac8 {[%clk 0:01:20.8]}
24. h5 {[%clk 0:01:05.2]} 24... Qe4 {[%clk 0:01:08.2]} 25. Qxb7 {[%clk
0:00:59.3]} 25... Rc1+ {[%clk 0:00:59.5]} 26. Rxc1 {[%clk 0:00:33.5]} 26... Qxb7
{[%clk 0:00:59.1]} 27. O-O {[%clk 0:00:34.1]} 27... gxh5 {[%clk 0:00:45.9]} 28.
Rc5 {[%clk 0:00:32.5]} 28... h4 {[%clk 0:00:38.3]} 29. Rxa5 {[%clk 0:00:29]}
29... h3 {[%clk 0:00:36.6]} 30. Rg5 {[%clk 0:00:28.5]} 30... h6 {[%clk
0:00:36.1]} 31. Rg3 {[%clk 0:00:28.3]} 31... Kf8 {[%clk 0:00:34.7]} 32. Bb5
{[%clk 0:00:27.8]} 32... Re6 {[%clk 0:00:32.1]} 33. Kh2 {[%clk 0:00:28.1]} 33...
Rg6 {[%clk 0:00:29.2]} 34. Kxh3 {[%clk 0:00:28.5]} 34... Rxg3+ {[%clk
0:00:28.3]} 35. Kxg3 {[%clk 0:00:25.7]} 35... Qc7 {[%clk 0:00:27.6]} 36. Rh1
{[%clk 0:00:19.9]} 36... Ke7 {[%clk 0:00:26.1]} 37. Rh5 {[%clk 0:00:17.8]} 37...
Kd6 {[%clk 0:00:23.2]} 38. Rc5 {[%clk 0:00:17.6]} 38... Qd8 {[%clk 0:00:20.8]}
39. Bc4 {[%clk 0:00:16.3]} 39... h5 {[%clk 0:00:12]} 40. Rd5+ {[%clk 0:00:16.2]}
40... Ke7 {[%clk 0:00:11.6]} 41. Rxd8 {[%clk 0:00:17.1]} 41... Kxd8 {[%clk
0:00:12.5]} 42. Bxf7 {[%clk 0:00:17.6]} 1-0

[Event "Early-Titled-Tuesday-Blitz-March-19-2024"]
[Site "Chess.com"]
[Date "2024.03.19"]
[Round "9"]
[White "UnTucopalaTimba"]
[Black "bennyficial"]
[Result "1-0"]
[WhiteElo "2006"]
[BlackElo "2102"]
[TimeControl "180+1"]
[EndTime "9:45:07 PDT"]
[Termination "UnTucopalaTimba won on time"]

1. e4 {[%clk 0:03:00.3]} 1... c5 {[%clk 0:03:00.2]} 2. Nf3 {[%clk 0:02:59.3]}
2... g6 {[%clk 0:03:00.8]} 3. c3 {[%clk 0:02:58.1]} 3... Bg7 {[%clk 0:02:58]} 4.
d4 {[%clk 0:02:58.1]} 4... cxd4 {[%clk 0:02:56.5]} 5. cxd4 {[%clk 0:02:58.2]}
5... d6 {[%clk 0:02:57.2]} 6. Nc3 {[%clk 0:02:53.5]} 6... Bg4 {[%clk 0:02:55]}
7. Be2 {[%clk 0:02:52.5]} 7... Nd7 {[%clk 0:02:54.7]} 8. O-O {[%clk 0:02:51.9]}
8... Ngf6 {[%clk 0:02:49.5]} 9. h3 {[%clk 0:02:47.9]} 9... Bxf3 {[%clk
0:02:49.3]} 10. Bxf3 {[%clk 0:02:47.6]} 10... O-O {[%clk 0:02:49.6]} 11. Qd3
{[%clk 0:02:43.6]} 11... a6 {[%clk 0:02:47.2]} 12. a4 {[%clk 0:02:41.8]} 12...
b6 {[%clk 0:02:38.6]} 13. Be3 {[%clk 0:02:32.5]} 13... e5 {[%clk 0:02:33]} 14.
Rfd1 {[%clk 0:02:21]} 14... Qe8 {[%clk 0:02:20.8]} 15. Qc4 {[%clk 0:02:06.7]}
15... Qb8 {[%clk 0:01:54.6]} 16. Qb3 {[%clk 0:01:38]} 16... exd4 {[%clk
0:01:48.8]} 17. Bxd4 {[%clk 0:01:36.9]} 17... Nc5 {[%clk 0:01:49.4]} 18. Qc2
{[%clk 0:01:33.2]} 18... Ra7 {[%clk 0:01:33.7]} 19. b4 {[%clk 0:01:21.4]} 19...
Ne6 {[%clk 0:01:29.9]} 20. Be3 {[%clk 0:01:16.2]} 20... a5 {[%clk 0:01:20.9]}
21. b5 {[%clk 0:01:03.7]} 21... Rc8 {[%clk 0:01:10.8]} 22. Qd2 {[%clk
0:00:55.9]} 22... Ne8 {[%clk 0:00:44.2]} 23. Rac1 {[%clk 0:00:52.4]} 23... Nc5
{[%clk 0:00:44.5]} 24. Qa2 {[%clk 0:00:39.3]} 24... Qb7 {[%clk 0:00:35.1]} 25.
Nd5 {[%clk 0:00:37.6]} 25... Be5 {[%clk 0:00:24]} 26. g3 {[%clk 0:00:28.6]}
26... Qb8 {[%clk 0:00:14.8]} 27. Bg4 {[%clk 0:00:25.5]} 27... Rd8 {[%clk
0:00:14.1]} 28. Kg2 {[%clk 0:00:23]} 28... Nf6 {[%clk 0:00:11.6]} 29. Bf3 {[%clk
0:00:18.3]} 29... Nxd5 {[%clk 0:00:10.8]} 30. Qxd5 {[%clk 0:00:16.9]} 30... Re7
{[%clk 0:00:09.2]} 31. Qc4 {[%clk 0:00:15.3]} 31... Qc8 {[%clk 0:00:08.4]} 32.
Bg5 {[%clk 0:00:12.5]} 32... Rde8 {[%clk 0:00:05.1]} 33. Bxe7 {[%clk 0:00:12.5]}
33... Rxe7 {[%clk 0:00:06]} 34. Rd5 {[%clk 0:00:11.6]} 34... Kg7 {[%clk
0:00:02.2]} 35. Bg4 {[%clk 0:00:10]} 35... Qe8 {[%clk 0:00:02.1]} 36. Bf3 {[%clk
0:00:08]} 36... Re6 {[%clk 0:00:02.2]} 37. Rcd1 {[%clk 0:00:07.1]} 1-0

[Event "Early-Titled-Tuesday-Blitz-March-19-2024"]
[Site "Chess.com"]
[Date "2024.03.19"]
[Round "9"]
[White "dropstoneDP"]
[Black "BilodeauA"]
[Result "0-1"]
[WhiteElo "2994"]
[BlackElo "3065"]
[TimeControl "180+1"]
[EndTime "9:45:09 PDT"]
[Termination "BilodeauA won on time"]

1. e4 {[%clk 0:03:00.9]} 1... e5 {[%clk 0:02:59.7]} 2. Nf3 {[%clk 0:03:00.8]}
2... Nc6 {[%clk 0:02:59.9]} 3. Nc3 {[%clk 0:02:55.5]} 3... d6 {[%clk 0:02:52.4]}
4. Bc4 {[%clk 0:02:52.3]} 4... Na5 {[%clk 0:02:48.1]} 5. Be2 {[%clk 0:02:48.6]}
5... c5 {[%clk 0:02:48]} 6. Nd5 {[%clk 0:02:46.1]} 6... Nf6 {[%clk 0:02:42.8]}
7. c3 {[%clk 0:02:45.8]} 7... Nc6 {[%clk 0:02:34.4]} 8. Bc4 {[%clk 0:02:21.9]}
8... Be7 {[%clk 0:02:01.8]} 9. d3 {[%clk 0:02:21]} 9... O-O {[%clk 0:02:00.5]}
10. O-O {[%clk 0:02:21.1]} 10... a6 {[%clk 0:01:54.2]} 11. a4 {[%clk 0:02:20.4]}
11... Be6 {[%clk 0:01:54.6]} 12. Nxf6+ {[%clk 0:02:18.3]} 12... Bxf6 {[%clk
0:01:54.5]} 13. Bxe6 {[%clk 0:02:18.6]} 13... fxe6 {[%clk 0:01:55.4]} 14. Be3
{[%clk 0:02:18]} 14... Rc8 {[%clk 0:01:39.1]} 15. b4 {[%clk 0:01:51.1]} 15...
cxb4 {[%clk 0:01:36.9]} 16. cxb4 {[%clk 0:01:52]} 16... Nxb4 {[%clk 0:01:25.9]}
17. Qb3 {[%clk 0:01:52.2]} 17... Nc2 {[%clk 0:01:22.5]} 18. Qxe6+ {[%clk
0:01:49.1]} 18... Kh8 {[%clk 0:01:22.3]} 19. Rab1 {[%clk 0:01:49.3]} 19... Nxe3
{[%clk 0:01:20.3]} 20. fxe3 {[%clk 0:01:50.2]} 20... Qc7 {[%clk 0:00:56.8]} 21.
h3 {[%clk 0:01:44.8]} 21... Qc5 {[%clk 0:00:50.9]} 22. Rfe1 {[%clk 0:01:35.4]}
22... b5 {[%clk 0:00:51]} 23. axb5 {[%clk 0:01:34.9]} 23... axb5 {[%clk
0:00:51.9]} 24. Qd5 {[%clk 0:01:28.1]} 24... b4 {[%clk 0:00:52.3]} 25. Kh2
{[%clk 0:01:00.6]} 25... h6 {[%clk 0:00:48.8]} 26. d4 {[%clk 0:00:54.1]} 26...
exd4 {[%clk 0:00:44.3]} 27. Qxc5 {[%clk 0:00:33]} 27... dxc5 {[%clk 0:00:38.4]}
28. exd4 {[%clk 0:00:33.2]} 28... cxd4 {[%clk 0:00:31.2]} 29. Rxb4 {[%clk
0:00:31.6]} 29... Rc2 {[%clk 0:00:28.6]} 30. Kg3 {[%clk 0:00:18.1]} 30... d3
{[%clk 0:00:25.6]} 31. e5 {[%clk 0:00:15.9]} 31... Be7 {[%clk 0:00:19.3]} 32.
Rd4 {[%clk 0:00:16.1]} 32... Bc5 {[%clk 0:00:20]} 33. Rxd3 {[%clk 0:00:07]}
33... Bf2+ {[%clk 0:00:20]} 34. Kh2 {[%clk 0:00:06.1]} 34... Rxf3 {[%clk
0:00:12.2]} 35. Rxf3 {[%clk 0:00:01.8]} 35... Bxe1 {[%clk 0:00:12.6]} 36. e6
{[%clk 0:00:02.1]} 36... Bb4 {[%clk 0:00:12.6]} 37. Re3 {[%clk 0:00:01.4]} 37...
Bd6+ {[%clk 0:00:12.4]} 38. Kg1 {[%clk 0:00:01.6]} 38... Bc5 {[%clk 0:00:12.3]}
39. e7 {[%clk 0:00:01.2]} 39... Bxe3+ {[%clk 0:00:12.6]} 0-1

[Event "Early-Titled-Tuesday-Blitz-March-19-2024"]
[Site "Chess.com"]
[Date "2024.03.19"]
[Round "9"]
[White "Igor_Lysyj"]
[Black "PLAYER_2006_M"]
[Result "1-0"]
[WhiteElo "2833"]
[BlackElo "2933"]
[TimeControl "180+1"]
[EndTime "9:45:09 PDT"]
[Termination "Igor_Lysyj won on time"]

1. d4 {[%clk 0:03:00.2]} 1... e6 {[%clk 0:02:59.1]} 2. c4 {[%clk 0:03:00.3]}
2... b6 {[%clk 0:02:58.9]} 3. a3 {[%clk 0:02:58.5]} 3... Bb7 {[%clk 0:02:55.8]}
4. Nc3 {[%clk 0:02:58.9]} 4... Nf6 {[%clk 0:02:56.2]} 5. Nf3 {[%clk 0:02:58.8]}
5... d5 {[%clk 0:02:56.8]} 6. Bf4 {[%clk 0:02:58.6]} 6... dxc4 {[%clk
0:02:53.7]} 7. e3 {[%clk 0:02:57.1]} 7... Nd5 {[%clk 0:02:53.9]} 8. Bxc4 {[%clk
0:02:56.8]} 8... Nxf4 {[%clk 0:02:53.6]} 9. exf4 {[%clk 0:02:56.7]} 9... Bd6
{[%clk 0:02:54.1]} 10. O-O {[%clk 0:02:53.3]} 10... O-O {[%clk 0:02:50.9]} 11.
d5 {[%clk 0:02:53.5]} 11... exd5 {[%clk 0:02:50.1]} 12. Bxd5 {[%clk 0:02:45.9]}
12... c6 {[%clk 0:02:46.6]} 13. Be4 {[%clk 0:02:38.6]} 13... Bxf4 {[%clk
0:02:44]} 14. Qc2 {[%clk 0:02:38.9]} 14... g6 {[%clk 0:02:36.2]} 15. Rad1 {[%clk
0:02:38.4]} 15... Qf6 {[%clk 0:02:24.3]} 16. g3 {[%clk 0:02:31]} 16... Bh6
{[%clk 0:02:23.3]} 17. Nb5 {[%clk 0:02:20.7]} 17... Ba6 {[%clk 0:02:11.1]} 18.
a4 {[%clk 0:02:20.3]} 18... cxb5 {[%clk 0:01:43]} 19. Bxa8 {[%clk 0:02:19.4]}
19... bxa4 {[%clk 0:01:42.1]} 20. Rfe1 {[%clk 0:02:18.2]} 20... Bb5 {[%clk
0:01:42.5]} 21. Ne5 {[%clk 0:02:04.9]} 21... Na6 {[%clk 0:01:31.8]} 22. Bd5
{[%clk 0:01:40.1]} 22... Nc5 {[%clk 0:01:22.4]} 23. Ng4 {[%clk 0:01:37.7]} 23...
Qg5 {[%clk 0:01:18.6]} 24. Nxh6+ {[%clk 0:01:33.7]} 24... Qxh6 {[%clk
0:01:19.5]} 25. Re7 {[%clk 0:01:33.5]} 25... a6 {[%clk 0:01:07]} 26. Qc3 {[%clk
0:00:50.2]} 26... Nd7 {[%clk 0:00:16.3]} 27. Ba2 {[%clk 0:00:36.2]} 27... Nc5
{[%clk 0:00:02.8]} 28. Qf6 {[%clk 0:00:28.5]} 28... Nb3 {[%clk 0:00:03.3]} 29.
Qxb6 {[%clk 0:00:15.9]} 29... Qg7 {[%clk 0:00:03.2]} 30. Bxb3 {[%clk 0:00:12.3]}
30... axb3 {[%clk 0:00:04.1]} 31. Qd4 {[%clk 0:00:09.7]} 31... Qh6 {[%clk
0:00:04.7]} 32. Qf6 {[%clk 0:00:08.9]} 32... Qh5 {[%clk 0:00:03.6]} 33. Rd8
{[%clk 0:00:07.2]} 33... Bc4 {[%clk 0:00:02.9]} 34. Rxf8+ {[%clk 0:00:06.5]}
34... Kxf8 {[%clk 0:00:03.5]} 35. Rd7 {[%clk 0:00:07]} 1-0

[Event "Early-Titled-Tuesday-Blitz-March-19-2024"]
[Site "Chess.com"]
[Date "2024.03.19"]
[Round "9"]
[White "Revan_2002"]
[Black "Mikhail_Golubev"]
[Result "0-1"]
[WhiteElo "2585"]
[BlackElo "2731"]
[TimeControl "180+1"]
[EndTime "9:45:10 PDT"]
[Termination "Mikhail_Golubev won on time"]

1. Nf3 {[%clk 0:02:59]} 1... d6 {[%clk 0:02:59.9]} 2. d4 {[%clk 0:02:58.4]} 2...
Nf6 {[%clk 0:02:59.3]} 3. c4 {[%clk 0:02:56.7]} 3... g6 {[%clk 0:02:58.7]} 4. g3
{[%clk 0:02:55.2]} 4... Bg7 {[%clk 0:02:59.2]} 5. Bg2 {[%clk 0:02:55.7]} 5...
O-O {[%clk 0:02:59.6]} 6. Nc3 {[%clk 0:02:55.9]} 6... Nbd7 {[%clk 0:02:59.2]} 7.
O-O {[%clk 0:02:56.5]} 7... e5 {[%clk 0:02:58.9]} 8. e4 {[%clk 0:02:57.1]} 8...
c6 {[%clk 0:02:58.8]} 9. h3 {[%clk 0:02:57.1]} 9... exd4 {[%clk 0:02:57.8]} 10.
Nxd4 {[%clk 0:02:56.4]} 10... Qb6 {[%clk 0:02:56.8]} 11. Nde2 {[%clk 0:02:28.4]}
11... a5 {[%clk 0:02:54.7]} 12. Rb1 {[%clk 0:02:24.6]} 12... Ne5 {[%clk
0:02:45.1]} 13. Be3 {[%clk 0:02:18.2]} 13... Qc7 {[%clk 0:02:44.6]} 14. b3
{[%clk 0:02:17.5]} 14... Re8 {[%clk 0:02:43]} 15. f4 {[%clk 0:02:13.2]} 15...
Ned7 {[%clk 0:02:42.5]} 16. Qd2 {[%clk 0:02:12.6]} 16... b6 {[%clk 0:02:11.8]}
17. Rbd1 {[%clk 0:02:07.1]} 17... Bf8 {[%clk 0:02:02.3]} 18. g4 {[%clk
0:01:53.1]} 18... Nc5 {[%clk 0:01:55.4]} 19. Ng3 {[%clk 0:01:51.9]} 19... h6
{[%clk 0:01:30.8]} 20. Bd4 {[%clk 0:01:29.8]} 20... Nfd7 {[%clk 0:01:22.6]} 21.
Kh1 {[%clk 0:01:10]} 21... Bb7 {[%clk 0:01:20.8]} 22. Qf2 {[%clk 0:00:59.6]}
22... Rad8 {[%clk 0:01:17.1]} 23. Rd2 {[%clk 0:00:48.7]} 23... Ne6 {[%clk
0:01:12.3]} 24. Be3 {[%clk 0:00:48.2]} 24... Bg7 {[%clk 0:01:12.3]} 25. Nce2
{[%clk 0:00:47.7]} 25... Nec5 {[%clk 0:01:10.8]} 26. e5 {[%clk 0:00:44.6]} 26...
dxe5 {[%clk 0:01:07.8]} 27. f5 {[%clk 0:00:45]} 27... Nf6 {[%clk 0:00:47]} 28.
Rxd8 {[%clk 0:00:24.8]} 28... Qxd8 {[%clk 0:00:44.6]} 29. g5 {[%clk 0:00:23.7]}
29... Nd3 {[%clk 0:00:36.4]} 30. Qg1 {[%clk 0:00:15.7]} 30... hxg5 {[%clk
0:00:36.4]} 31. Bxg5 {[%clk 0:00:15]} 31... e4 {[%clk 0:00:23.4]} 32. fxg6
{[%clk 0:00:13.4]} 32... fxg6 {[%clk 0:00:24.3]} 33. Nxe4 {[%clk 0:00:11.1]}
33... c5 {[%clk 0:00:15.1]} 34. Nxf6+ {[%clk 0:00:06.7]} 34... Bxf6 {[%clk
0:00:15.3]} 35. Bxf6 {[%clk 0:00:06.7]} 35... Qd7 {[%clk 0:00:10.5]} 36. Nf4
{[%clk 0:00:03.5]} 36... Nxf4 {[%clk 0:00:09.8]} 0-1